[Event "*** Titled Tuesday Blitz"]
[Site "Chess.com"]
[Date "2019.11.05"]
[Round "1"]
[White "Olga_Ustinova"]
[Black "moro182"]
[Result "0-1"]
[WhiteElo "2388"]
[BlackElo "2719"]
[TimeControl "180+2"]
[EndTime "13:07:46 PST"]
[Termination "moro182 won by checkmate"]

1. d4 {[%clk 0:02:59.9]} 1... d5 {[%clk 0:03:01]} 2. Nf3 {[%clk 0:03:00.8]} 2...
Nf6 {[%clk 0:03:00.8]} 3. Bf4 {[%clk 0:03:00]} 3... e6 {[%clk 0:02:55.4]} 4. e3
{[%clk 0:03:00.6]} 4... c5 {[%clk 0:02:56.9]} 5. c3 {[%clk 0:03:01.5]} 5... Nc6
{[%clk 0:02:58.3]} 6. Nbd2 {[%clk 0:03:01.7]} 6... Bd6 {[%clk 0:02:59.5]} 7. Bg3
{[%clk 0:03:00.8]} 7... O-O {[%clk 0:02:58.9]} 8. Bd3 {[%clk 0:03:00.2]} 8... b6
{[%clk 0:02:59.7]} 9. Ne5 {[%clk 0:02:59]} 9... Bb7 {[%clk 0:02:59.9]} 10. f4
{[%clk 0:02:59.5]} 10... Ne7 {[%clk 0:02:57.9]} 11. O-O {[%clk 0:02:58.8]} 11...
Nf5 {[%clk 0:02:57.3]} 12. Bf2 {[%clk 0:02:46.9]} 12... Be7 {[%clk 0:02:58]} 13.
Qf3 {[%clk 0:02:41.9]} 13... Nd6 {[%clk 0:02:53.5]} 14. Bh4 {[%clk 0:02:35.8]}
14... Nfe4 {[%clk 0:02:53.9]} 15. Bxe7 {[%clk 0:02:35.2]} 15... Qxe7 {[%clk
0:02:47.3]} 16. Rad1 {[%clk 0:02:24.6]} 16... f6 {[%clk 0:02:38.4]} 17. Ng4
{[%clk 0:02:21.7]} 17... c4 {[%clk 0:02:35]} 18. Bxe4 {[%clk 0:02:17.6]} 18...
dxe4 {[%clk 0:02:36.9]} 19. Qe2 {[%clk 0:02:18]} 19... b5 {[%clk 0:02:37.8]} 20.
a3 {[%clk 0:02:18.4]} 20... a5 {[%clk 0:02:38.3]} 21. Ra1 {[%clk 0:02:14.9]}
21... Bd5 {[%clk 0:02:38.8]} 22. Nf2 {[%clk 0:02:14.2]} 22... Qb7 {[%clk
0:02:39.6]} 23. Ra2 {[%clk 0:02:07.2]} 23... b4 {[%clk 0:02:38.6]} 24. axb4
{[%clk 0:02:09.1]} 24... axb4 {[%clk 0:02:40.5]} 25. Rfa1 {[%clk 0:02:10.3]}
25... bxc3 {[%clk 0:02:37.1]} 26. bxc3 {[%clk 0:02:09.3]} 26... Rxa2 {[%clk
0:02:34]} 27. Rxa2 {[%clk 0:02:11.2]} 27... Ra8 {[%clk 0:02:33.9]} 28. Rxa8+
{[%clk 0:02:07.6]} 28... Qxa8 {[%clk 0:02:35.8]} 29. Qd1 {[%clk 0:02:07.1]}
29... Qa3 {[%clk 0:02:34.2]} 30. Qc2 {[%clk 0:02:07]} 30... f5 {[%clk
0:02:31.8]} 31. Nb1 {[%clk 0:02:05.5]} 31... Qa1 {[%clk 0:02:30.2]} 32. Nd1
{[%clk 0:02:03]} 32... Bc6 {[%clk 0:02:25.8]} 33. Qb2 {[%clk 0:02:01.3]} 33...
Qa4 {[%clk 0:02:21.6]} 34. Qc1 {[%clk 0:01:54.8]} 34... Nb5 {[%clk 0:02:18.7]}
35. h3 {[%clk 0:01:53.5]} 35... h6 {[%clk 0:02:13.3]} 36. Kh2 {[%clk 0:01:49.6]}
36... Kh7 {[%clk 0:02:13.7]} 37. h4 {[%clk 0:01:41]} 37... Nc7 {[%clk
0:02:12.6]} 38. Qd2 {[%clk 0:01:38.1]} 38... Nd5 {[%clk 0:02:12.6]} 39. Kg3
{[%clk 0:01:30.3]} 39... Qb3 {[%clk 0:02:13.3]} 40. Qc1 {[%clk 0:01:25.8]} 40...
Ba4 {[%clk 0:02:05.6]} 41. Nf2 {[%clk 0:01:25.2]} 41... Qa2 {[%clk 0:02:00.5]}
42. h5 {[%clk 0:01:09.6]} 42... Qe2 {[%clk 0:01:57.5]} 43. Na3 {[%clk
0:00:37.9]} 43... Bb3 {[%clk 0:01:51.3]} 44. Nb5 {[%clk 0:00:10.1]} 44... Nxe3
{[%clk 0:01:48.9]} 45. Nd6 {[%clk 0:00:08]} 45... Nf1+ {[%clk 0:01:49]} 46. Kh3
{[%clk 0:00:08.2]} 46... Qxh5# {[%clk 0:01:47.5]} 0-1

[Event "*** Titled Tuesday Blitz"]
[Site "Chess.com"]
[Date "2019.11.05"]
[Round "1"]
[White "belisarius64"]
[Black "nitpicker"]
[Result "0-1"]
[WhiteElo "2606"]
[BlackElo "2286"]
[TimeControl "180+2"]
[EndTime "13:07:58 PST"]
[Termination "nitpicker won on time"]

1. e4 {[%clk 0:02:57.1]} 1... e6 {[%clk 0:02:57.2]} 2. d4 {[%clk 0:02:46.8]}
2... d5 {[%clk 0:02:57.2]} 3. Nc3 {[%clk 0:02:47.2]} 3... dxe4 {[%clk 0:02:58]}
4. Nxe4 {[%clk 0:02:47.9]} 4... Bd7 {[%clk 0:02:59.2]} 5. Nf3 {[%clk 0:02:47.4]}
5... Bc6 {[%clk 0:03:00.3]} 6. Bd3 {[%clk 0:02:48.4]} 6... Nd7 {[%clk
0:03:01.5]} 7. Qe2 {[%clk 0:02:47.7]} 7... Ngf6 {[%clk 0:03:02.5]} 8. Ng3 {[%clk
0:02:46.7]} 8... Be7 {[%clk 0:03:01.6]} 9. O-O {[%clk 0:02:44.7]} 9... Bxf3
{[%clk 0:03:01.1]} 10. Qxf3 {[%clk 0:02:45.1]} 10... c6 {[%clk 0:03:02.7]} 11.
Re1 {[%clk 0:02:43.9]} 11... O-O {[%clk 0:03:03.1]} 12. b3 {[%clk 0:02:21.4]}
12... Qa5 {[%clk 0:02:55.8]} 13. Bb2 {[%clk 0:02:05.4]} 13... Ba3 {[%clk
0:02:54.6]} 14. Bxa3 {[%clk 0:02:04.9]} 14... Qxa3 {[%clk 0:02:55.5]} 15. c4
{[%clk 0:02:05.8]} 15... Qd6 {[%clk 0:02:41.1]} 16. Rad1 {[%clk 0:02:04.3]}
16... a5 {[%clk 0:02:41.4]} 17. c5 {[%clk 0:01:39]} 17... Qc7 {[%clk 0:02:41.3]}
18. Re2 {[%clk 0:01:28.6]} 18... g6 {[%clk 0:02:41.6]} 19. Rde1 {[%clk
0:01:24.4]} 19... Rad8 {[%clk 0:02:41.8]} 20. h4 {[%clk 0:01:22.9]} 20... h5
{[%clk 0:02:04.5]} 21. Ne4 {[%clk 0:00:59.3]} 21... Nxe4 {[%clk 0:02:04.8]} 22.
Bxe4 {[%clk 0:00:52.4]} 22... Kg7 {[%clk 0:02:03.1]} 23. Bb1 {[%clk 0:00:46.6]}
23... Nf6 {[%clk 0:02:02.4]} 24. Rd1 {[%clk 0:00:34.8]} 24... Rd5 {[%clk
0:02:02.3]} 25. Red2 {[%clk 0:00:22.1]} 25... Rfd8 {[%clk 0:02:02.4]} 26. g3
{[%clk 0:00:23.2]} 26... R8d7 {[%clk 0:02:03.3]} 27. Qe3 {[%clk 0:00:23.1]}
27... Qd8 {[%clk 0:01:59.2]} 28. f4 {[%clk 0:00:21.3]} 28... Ng4 {[%clk
0:01:48.6]} 29. Qe4 {[%clk 0:00:17.7]} 29... Rxc5 {[%clk 0:01:46.2]} 30. Qe2
{[%clk 0:00:08.3]} 30... Rc3 {[%clk 0:01:44]} 31. Rd3 {[%clk 0:00:05.5]} 31...
Rxd3 {[%clk 0:01:38.8]} 32. Rxd3 {[%clk 0:00:07.4]} 32... Rxd4 {[%clk
0:01:36.9]} 33. Qd2 {[%clk 0:00:03.8]} 33... Rxd3 {[%clk 0:01:35]} 34. Qxd3
{[%clk 0:00:05.7]} 34... Qxd3 {[%clk 0:01:34.2]} 35. Bxd3 {[%clk 0:00:07.6]}
35... Ne3 {[%clk 0:01:32.1]} 36. Kf2 {[%clk 0:00:07.6]} 36... Nd5 {[%clk
0:01:32.9]} 37. Kf3 {[%clk 0:00:06.9]} 37... Nb4 {[%clk 0:01:30.8]} 38. Bb1
{[%clk 0:00:08]} 38... Kf6 {[%clk 0:01:25.3]} 39. Ke4 {[%clk 0:00:08.5]} 39...
Nd5 {[%clk 0:01:19]} 40. Kd4 {[%clk 0:00:07.1]} 40... b6 {[%clk 0:01:17.1]} 41.
a3 {[%clk 0:00:08]} 41... Ke7 {[%clk 0:01:13.2]} 42. Bd3 {[%clk 0:00:05]} 42...
Kd6 {[%clk 0:01:08.3]} 0-1

[Event "*** Titled Tuesday Blitz"]
[Site "Chess.com"]
[Date "2019.11.05"]
[Round "1"]
[White "51616516516"]
[Black "Aygehovit1992"]
[Result "0-1"]
[WhiteElo "2197"]
[BlackElo "2592"]
[TimeControl "180+2"]
[EndTime "13:07:59 PST"]
[Termination "Aygehovit1992 won on time"]

1. d4 {[%clk 0:02:59.6]} 1... Nf6 {[%clk 0:02:59.6]} 2. c4 {[%clk 0:03:00.5]}
2... g6 {[%clk 0:03:00.5]} 3. Nf3 {[%clk 0:02:59.6]} 3... Bg7 {[%clk 0:03:01.9]}
4. g3 {[%clk 0:03:00.5]} 4... O-O {[%clk 0:03:03.3]} 5. Bg2 {[%clk 0:03:01.5]}
5... d6 {[%clk 0:03:04.4]} 6. O-O {[%clk 0:03:02.3]} 6... Nc6 {[%clk 0:03:05.6]}
7. Nc3 {[%clk 0:03:02.5]} 7... a6 {[%clk 0:03:06.1]} 8. Re1 {[%clk 0:03:00.3]}
8... Rb8 {[%clk 0:03:03.4]} 9. Rb1 {[%clk 0:03:01.3]} 9... b5 {[%clk 0:03:03.5]}
10. cxb5 {[%clk 0:03:02.3]} 10... axb5 {[%clk 0:03:05.4]} 11. b4 {[%clk
0:03:03.5]} 11... Nd7 {[%clk 0:02:56.8]} 12. e4 {[%clk 0:02:49.3]} 12... e5
{[%clk 0:02:42.9]} 13. d5 {[%clk 0:02:46.3]} 13... Ne7 {[%clk 0:02:43.5]} 14.
Qd3 {[%clk 0:02:39.5]} 14... Qe8 {[%clk 0:01:59.6]} 15. Nxb5 {[%clk 0:02:30.6]}
15... Ba6 {[%clk 0:01:58.8]} 16. a4 {[%clk 0:02:31.2]} 16... Nb6 {[%clk
0:01:59.5]} 17. Qc2 {[%clk 0:02:20.4]} 17... Bxb5 {[%clk 0:01:49.5]} 18. axb5
{[%clk 0:02:22.3]} 18... Rb7 {[%clk 0:01:29.2]} 19. Bf1 {[%clk 0:02:18.4]} 19...
h6 {[%clk 0:01:24.6]} 20. Ra1 {[%clk 0:02:15.3]} 20... f5 {[%clk 0:01:23.8]} 21.
Bb2 {[%clk 0:01:42.1]} 21... Kh7 {[%clk 0:01:15]} 22. exf5 {[%clk 0:01:42]}
22... Nxf5 {[%clk 0:01:14.9]} 23. Qc6 {[%clk 0:01:17.7]} 23... Qc8 {[%clk
0:01:12.3]} 24. Bh3 {[%clk 0:01:00.1]} 24... Qb8 {[%clk 0:01:12.6]} 25. Nd2
{[%clk 0:00:50.8]} 25... Ne7 {[%clk 0:01:11.9]} 26. Qc2 {[%clk 0:00:44.8]} 26...
Nbxd5 {[%clk 0:01:12.2]} 27. Bg2 {[%clk 0:00:29]} 27... Rxb5 {[%clk 0:01:10.6]}
28. Ne4 {[%clk 0:00:11.7]} 28... Nxb4 {[%clk 0:01:06.4]} 29. Qd2 {[%clk
0:00:07.5]} 29... Nd3 {[%clk 0:00:58.4]} 30. Qxd3 {[%clk 0:00:05.6]} 30... Rxb2
{[%clk 0:00:59.5]} 31. Ra8 {[%clk 0:00:03.8]} 31... Qb4 {[%clk 0:01:00.1]} 32.
Rxf8 {[%clk 0:00:03.8]} 32... Qxe1+ {[%clk 0:01:00.8]} 0-1

[Event "*** Titled Tuesday Blitz"]
[Site "Chess.com"]
[Date "2019.11.05"]
[Round "1"]
[White "FearlessKing64"]
[Black "Mesutgm"]
[Result "0-1"]
[WhiteElo "2250"]
[BlackElo "2611"]
[TimeControl "180+2"]
[EndTime "13:08:02 PST"]
[Termination "Mesutgm won by resignation"]

1. e4 {[%clk 0:03:01.3]} 1... e6 {[%clk 0:03:01.3]} 2. d4 {[%clk 0:03:01.4]}
2... d5 {[%clk 0:03:03.2]} 3. exd5 {[%clk 0:03:02.2]} 3... exd5 {[%clk
0:03:04.1]} 4. Nf3 {[%clk 0:03:03.7]} 4... Bd6 {[%clk 0:03:05.2]} 5. Bd3 {[%clk
0:03:03.8]} 5... Ne7 {[%clk 0:03:06]} 6. c3 {[%clk 0:03:03.3]} 6... Bg4 {[%clk
0:03:04.4]} 7. Bg5 {[%clk 0:02:55.9]} 7... f6 {[%clk 0:03:04.8]} 8. Bh4 {[%clk
0:02:53.7]} 8... Qd7 {[%clk 0:03:05.7]} 9. Nbd2 {[%clk 0:02:48.7]} 9... Nbc6
{[%clk 0:03:03.5]} 10. Qc2 {[%clk 0:02:44.4]} 10... O-O-O {[%clk 0:03:01]} 11.
Bg3 {[%clk 0:02:33.3]} 11... Rde8 {[%clk 0:02:58.6]} 12. O-O-O {[%clk
0:02:27.9]} 12... Bf5 {[%clk 0:02:54.7]} 13. Bxd6 {[%clk 0:02:18.9]} 13... Bxd3
{[%clk 0:02:55.3]} 14. Qxd3 {[%clk 0:02:18.8]} 14... Qxd6 {[%clk 0:02:56.2]} 15.
Rde1 {[%clk 0:02:19.1]} 15... Qd7 {[%clk 0:02:53.8]} 16. Re2 {[%clk 0:02:15.2]}
16... Nf5 {[%clk 0:02:53.7]} 17. Rhe1 {[%clk 0:02:13.7]} 17... g6 {[%clk
0:02:49.9]} 18. Rxe8+ {[%clk 0:01:57.1]} 18... Rxe8 {[%clk 0:02:50.4]} 19. Rxe8+
{[%clk 0:01:57.4]} 19... Qxe8 {[%clk 0:02:52.3]} 20. Kd1 {[%clk 0:01:47.6]}
20... Nd6 {[%clk 0:02:44.6]} 21. Qe2 {[%clk 0:01:45.8]} 21... Qxe2+ {[%clk
0:02:42.2]} 22. Kxe2 {[%clk 0:01:47.7]} 22... Kd7 {[%clk 0:02:43.5]} 23. Kd3
{[%clk 0:01:48]} 23... Ke6 {[%clk 0:02:44.3]} 24. Ng1 {[%clk 0:01:36.1]} 24...
h5 {[%clk 0:02:44.7]} 25. Ne2 {[%clk 0:01:36.5]} 25... g5 {[%clk 0:02:45.7]} 26.
f4 {[%clk 0:01:34.4]} 26... Kf5 {[%clk 0:02:18.1]} 27. fxg5 {[%clk 0:01:32.7]}
27... fxg5 {[%clk 0:02:20]} 28. Ke3 {[%clk 0:01:25.7]} 28... h4 {[%clk
0:02:16.4]} 29. h3 {[%clk 0:01:22.3]} 29... Ne7 {[%clk 0:02:15.5]} 30. Nf3
{[%clk 0:01:18.8]} 30... Ng6 {[%clk 0:02:15.5]} 31. Nd2 {[%clk 0:01:09.3]} 31...
Ne7 {[%clk 0:02:11.9]} 32. Ng1 {[%clk 0:01:05.7]} 32... Nf7 {[%clk 0:02:03.6]}
33. Ngf3 {[%clk 0:01:02.7]} 33... Ng6 {[%clk 0:02:04.7]} 34. Ne1 {[%clk
0:00:31.7]} 34... Nf4 {[%clk 0:02:05.3]} 35. Kf2 {[%clk 0:00:33.3]} 35... Nd6
{[%clk 0:02:04.7]} 36. Ndf3 {[%clk 0:00:21.3]} 36... Ne4+ {[%clk 0:02:05.5]} 37.
Kf1 {[%clk 0:00:19.9]} 37... c5 {[%clk 0:01:44.8]} 38. dxc5 {[%clk 0:00:20.5]}
38... Nxc5 {[%clk 0:01:45.9]} 39. Nd4+ {[%clk 0:00:20.9]} 39... Ke4 {[%clk
0:01:46.4]} 40. Nef3 {[%clk 0:00:21]} 40... Nfe6 {[%clk 0:01:40.5]} 41. Nxe6
{[%clk 0:00:20.6]} 41... Nxe6 {[%clk 0:01:42.4]} 42. Ke2 {[%clk 0:00:21.1]}
42... Nf4+ {[%clk 0:01:43.4]} 43. Kf2 {[%clk 0:00:22.6]} 43... Ne6 {[%clk
0:01:43]} 44. Ke2 {[%clk 0:00:22.4]} 44... Kf4 {[%clk 0:01:42.9]} 45. Kf2 {[%clk
0:00:20.7]} 45... Nc5 {[%clk 0:01:43.5]} 46. Ne1 {[%clk 0:00:19.1]} 46... Ne4+
{[%clk 0:01:43.9]} 47. Ke2 {[%clk 0:00:16.9]} 47... Kg3 {[%clk 0:01:43.2]} 48.
Ke3 {[%clk 0:00:17.2]} 48... Nf6 {[%clk 0:01:43.5]} 49. b3 {[%clk 0:00:17.3]}
49... Nh5 {[%clk 0:01:44.4]} 50. c4 {[%clk 0:00:18.2]} 50... dxc4 {[%clk
0:01:45.1]} 51. bxc4 {[%clk 0:00:20.1]} 51... Nf4 {[%clk 0:01:46.3]} 52. c5
{[%clk 0:00:17.8]} 52... Nxg2+ {[%clk 0:01:46.8]} 53. Nxg2 {[%clk 0:00:19.5]}
53... Kxg2 {[%clk 0:01:48.6]} 54. a4 {[%clk 0:00:20.4]} 54... Kxh3 {[%clk
0:01:49.3]} 55. a5 {[%clk 0:00:22]} 55... a6 {[%clk 0:01:49.8]} 56. Ke4 {[%clk
0:00:22.7]} 56... g4 {[%clk 0:01:50.9]} 57. Kd5 {[%clk 0:00:24]} 57... g3 {[%clk
0:01:52]} 58. Kd6 {[%clk 0:00:25.9]} 58... g2 {[%clk 0:01:53.1]} 59. Kc7 {[%clk
0:00:27.8]} 59... g1=Q {[%clk 0:01:54.3]} 60. Kxb7 {[%clk 0:00:29.7]} 60... Qxc5
{[%clk 0:01:55.2]} 0-1

[Event "*** Titled Tuesday Blitz"]
[Site "Chess.com"]
[Date "2019.11.05"]
[Round "1"]
[White "SaraciNderim"]
[Black "twitchTriniCupid"]
[Result "1-0"]
[WhiteElo "2811"]
[BlackElo "2437"]
[TimeControl "180+2"]
[EndTime "13:08:22 PST"]
[Termination "SaraciNderim won on time"]

1. b3 {[%clk 0:02:56.7]} 1... Nf6 {[%clk 0:02:59.4]} 2. Bb2 {[%clk 0:02:56.5]}
2... d6 {[%clk 0:02:59.4]} 3. e3 {[%clk 0:02:57.1]} 3... e5 {[%clk 0:03:00.5]}
4. d4 {[%clk 0:02:57.6]} 4... Nbd7 {[%clk 0:03:01.5]} 5. c4 {[%clk 0:02:58]}
5... g6 {[%clk 0:03:02.3]} 6. Nc3 {[%clk 0:02:58.5]} 6... Bg7 {[%clk 0:03:03.3]}
7. Nf3 {[%clk 0:02:59.6]} 7... O-O {[%clk 0:03:03.3]} 8. Be2 {[%clk 0:03:00.6]}
8... Re8 {[%clk 0:03:04.6]} 9. O-O {[%clk 0:03:01.2]} 9... Qe7 {[%clk
0:03:04.3]} 10. Rc1 {[%clk 0:03:00.7]} 10... h6 {[%clk 0:02:56.9]} 11. dxe5
{[%clk 0:02:45.1]} 11... Nxe5 {[%clk 0:02:57.3]} 12. Nxe5 {[%clk 0:02:43.3]}
12... Qxe5 {[%clk 0:02:46]} 13. Ba1 {[%clk 0:02:38.9]} 13... Qe7 {[%clk
0:02:29.6]} 14. Bf3 {[%clk 0:02:37.1]} 14... c6 {[%clk 0:02:00]} 15. Qd2 {[%clk
0:02:34.1]} 15... Bg4 {[%clk 0:01:58.6]} 16. Bxg4 {[%clk 0:02:13]} 16... Nxg4
{[%clk 0:01:59]} 17. h3 {[%clk 0:02:14]} 17... Nf6 {[%clk 0:01:52.5]} 18. Rfd1
{[%clk 0:02:12.2]} 18... Rad8 {[%clk 0:01:53.3]} 19. Rc2 {[%clk 0:02:04.7]}
19... Qc7 {[%clk 0:01:43.2]} 20. Qc1 {[%clk 0:01:59.9]} 20... Rd7 {[%clk
0:01:25.3]} 21. Rcd2 {[%clk 0:01:58.1]} 21... Red8 {[%clk 0:01:26.6]} 22. Rd3
{[%clk 0:01:55]} 22... Qa5 {[%clk 0:01:07.8]} 23. Bb2 {[%clk 0:01:48.4]} 23...
Qf5 {[%clk 0:01:01.4]} 24. Qa1 {[%clk 0:01:47.8]} 24... Ne4 {[%clk 0:00:56.6]}
25. Nxe4 {[%clk 0:01:46.2]} 25... Bxb2 {[%clk 0:00:57.1]} 26. Qxb2 {[%clk
0:01:45.9]} 26... Qxe4 {[%clk 0:00:57.9]} 27. Qf6 {[%clk 0:01:46.6]} 27... Qe6
{[%clk 0:00:56.2]} 28. Qf4 {[%clk 0:01:42]} 28... g5 {[%clk 0:00:54.9]} 29. Qd4
{[%clk 0:01:41]} 29... b6 {[%clk 0:00:49.2]} 30. Qc3 {[%clk 0:01:37.2]} 30... f6
{[%clk 0:00:45.7]} 31. Rd4 {[%clk 0:01:36]} 31... f5 {[%clk 0:00:37.7]} 32. Qd3
{[%clk 0:01:33.4]} 32... Kg7 {[%clk 0:00:35.9]} 33. h4 {[%clk 0:01:31.5]} 33...
g4 {[%clk 0:00:32.1]} 34. Rf4 {[%clk 0:01:16]} 34... Rf7 {[%clk 0:00:31.2]} 35.
Qd4+ {[%clk 0:01:12.6]} 35... Kg8 {[%clk 0:00:22.2]} 36. e4 {[%clk 0:01:10.4]}
36... fxe4 {[%clk 0:00:16.9]} 37. Rxe4 {[%clk 0:01:06.7]} 37... Qf5 {[%clk
0:00:14.7]} 38. Rxg4+ {[%clk 0:01:05.2]} 38... Kh7 {[%clk 0:00:12.6]} 39. g3
{[%clk 0:01:06]} 39... c5 {[%clk 0:00:10.2]} 40. Qe4 {[%clk 0:01:05.4]} 40...
Qxe4 {[%clk 0:00:06.8]} 41. Rxe4 {[%clk 0:01:07.3]} 41... Rdd7 {[%clk
0:00:07.2]} 42. Re6 {[%clk 0:01:06.2]} 1-0

[Event "*** Titled Tuesday Blitz"]
[Site "Chess.com"]
[Date "2019.11.05"]
[Round "1"]
[White "misha_melnichuk"]
[Black "Bigfish1995"]
[Result "1/2-1/2"]
[WhiteElo "2535"]
[BlackElo "3024"]
[TimeControl "180+2"]
[EndTime "13:08:26 PST"]
[Termination "Game drawn by repetition"]

1. Nf3 {[%clk 0:02:57.6]} 1... d5 {[%clk 0:03:00]} 2. g3 {[%clk 0:02:57.3]} 2...
Nd7 {[%clk 0:03:01]} 3. Bg2 {[%clk 0:02:58.2]} 3... e5 {[%clk 0:03:00.4]} 4. d3
{[%clk 0:02:59]} 4... Ngf6 {[%clk 0:02:59.6]} 5. O-O {[%clk 0:03:00]} 5... c6
{[%clk 0:03:00.3]} 6. c4 {[%clk 0:02:59.7]} 6... dxc4 {[%clk 0:02:56.3]} 7. dxc4
{[%clk 0:02:59.6]} 7... Bc5 {[%clk 0:02:47.3]} 8. Nc3 {[%clk 0:02:47.2]} 8...
Qe7 {[%clk 0:02:43.2]} 9. Ng5 {[%clk 0:02:29]} 9... Bb4 {[%clk 0:02:24.3]} 10.
Qc2 {[%clk 0:02:27]} 10... h6 {[%clk 0:02:21.8]} 11. Nge4 {[%clk 0:02:26.7]}
11... Nxe4 {[%clk 0:02:22.3]} 12. Bxe4 {[%clk 0:02:21]} 12... Nf6 {[%clk
0:02:21.5]} 13. Bg2 {[%clk 0:02:19.7]} 13... Bg4 {[%clk 0:02:18.3]} 14. Ne4
{[%clk 0:02:11.9]} 14... Nxe4 {[%clk 0:02:15]} 15. Bxe4 {[%clk 0:02:10.2]} 15...
O-O {[%clk 0:02:15.7]} 16. Bd2 {[%clk 0:02:05.9]} 16... Bc5 {[%clk 0:02:06.1]}
17. Bc3 {[%clk 0:01:55.1]} 17... f5 {[%clk 0:02:07.1]} 18. Bf3 {[%clk
0:01:46.2]} 18... Bh3 {[%clk 0:02:00.7]} 19. Bg2 {[%clk 0:01:46.4]} 19... Bxg2
{[%clk 0:01:59.4]} 20. Kxg2 {[%clk 0:01:48.3]} 20... e4 {[%clk 0:01:39.1]} 21.
e3 {[%clk 0:01:41.4]} 21... Rad8 {[%clk 0:01:30]} 22. Rad1 {[%clk 0:01:41.5]}
22... Qf7 {[%clk 0:01:22.8]} 23. Qe2 {[%clk 0:01:34.2]} 23... Be7 {[%clk
0:01:04.8]} 24. b3 {[%clk 0:01:33.3]} 24... h5 {[%clk 0:00:57.1]} 25. Rxd8
{[%clk 0:01:28.3]} 25... Rxd8 {[%clk 0:00:58]} 26. Rd1 {[%clk 0:01:29.8]} 26...
h4 {[%clk 0:00:57.6]} 27. Rxd8+ {[%clk 0:01:28.9]} 27... Bxd8 {[%clk 0:00:59.5]}
28. Qd1 {[%clk 0:01:24.5]} 28... Bc7 {[%clk 0:00:57.3]} 29. Qd4 {[%clk
0:01:20.7]} 29... b6 {[%clk 0:00:54.4]} 30. Kh3 {[%clk 0:01:05.3]} 30... Qg6
{[%clk 0:00:43.5]} 31. Qd7 {[%clk 0:00:53.4]} 31... Bd6 {[%clk 0:00:37.8]} 32.
Qd8+ {[%clk 0:00:46.3]} 32... Bf8 {[%clk 0:00:32.6]} 33. Qxh4 {[%clk 0:00:47.1]}
33... Qe6 {[%clk 0:00:24.3]} 34. Qg5 {[%clk 0:00:45.5]} 34... b5 {[%clk
0:00:20.6]} 35. cxb5 {[%clk 0:00:45.1]} 35... cxb5 {[%clk 0:00:22.1]} 36. Kg2
{[%clk 0:00:46.6]} 36... b4 {[%clk 0:00:22]} 37. Bd4 {[%clk 0:00:47.7]} 37... a6
{[%clk 0:00:21.4]} 38. h4 {[%clk 0:00:48.9]} 38... Kf7 {[%clk 0:00:20.7]} 39. h5
{[%clk 0:00:49.3]} 39... a5 {[%clk 0:00:19.1]} 40. Qf4 {[%clk 0:00:48.7]} 40...
Bd6 {[%clk 0:00:19.6]} 41. Qg5 {[%clk 0:00:49.3]} 41... Bf8 {[%clk 0:00:20.4]}
42. Qf4 {[%clk 0:00:47.6]} 42... Bd6 {[%clk 0:00:19.5]} 43. Qg5 {[%clk
0:00:48.3]} 43... Bf8 {[%clk 0:00:20.7]} 1/2-1/2

[Event "*** Titled Tuesday Blitz"]
[Site "Chess.com"]
[Date "2019.11.05"]
[Round "1"]
[White "2165149677570"]
[Black "riconaipe"]
[Result "1-0"]
[WhiteElo "2280"]
[BlackElo "2606"]
[TimeControl "180+2"]
[EndTime "13:08:26 PST"]
[Termination "2165149677570 won by resignation"]

1. e4 {[%clk 0:03:01.9]} 1... c6 {[%clk 0:02:55.4]} 2. d4 {[%clk 0:03:01.6]}
2... d5 {[%clk 0:02:57.3]} 3. e5 {[%clk 0:03:02.2]} 3... g6 {[%clk 0:02:56.7]}
4. Nf3 {[%clk 0:03:03]} 4... Bg7 {[%clk 0:02:57.8]} 5. Be2 {[%clk 0:03:04]} 5...
f6 {[%clk 0:02:58.4]} 6. h4 {[%clk 0:03:03.8]} 6... Bg4 {[%clk 0:02:58.3]} 7.
Nfd2 {[%clk 0:03:03.4]} 7... Bxe2 {[%clk 0:02:58.9]} 8. Qxe2 {[%clk 0:03:05.3]}
8... fxe5 {[%clk 0:02:57.6]} 9. dxe5 {[%clk 0:03:07.2]} 9... Nd7 {[%clk
0:02:58.3]} 10. e6 {[%clk 0:03:06.2]} 10... Nc5 {[%clk 0:02:52]} 11. h5 {[%clk
0:03:06.5]} 11... Qd6 {[%clk 0:02:51.3]} 12. hxg6 {[%clk 0:03:07.3]} 12... hxg6
{[%clk 0:02:52.4]} 13. Rxh8 {[%clk 0:03:09.2]} 13... Bxh8 {[%clk 0:02:53.1]} 14.
Nb3 {[%clk 0:02:59]} 14... Nxe6 {[%clk 0:02:48.9]} 15. Nc3 {[%clk 0:02:57]}
15... O-O-O {[%clk 0:02:44.9]} 16. Be3 {[%clk 0:02:57.2]} 16... d4 {[%clk
0:02:39.1]} 17. O-O-O {[%clk 0:02:58.4]} 17... c5 {[%clk 0:02:39.8]} 18. Ne4
{[%clk 0:02:55.2]} 18... Qc6 {[%clk 0:02:37.1]} 19. Bd2 {[%clk 0:02:39.2]} 19...
Nf6 {[%clk 0:02:25]} 20. Nxf6 {[%clk 0:02:28]} 20... Bxf6 {[%clk 0:02:26.1]} 21.
Qg4 {[%clk 0:02:29.9]} 21... c4 {[%clk 0:02:12.3]} 22. Na5 {[%clk 0:02:25.5]}
22... Qd5 {[%clk 0:02:09]} 23. Re1 {[%clk 0:02:16.9]} 23... Rd6 {[%clk 0:02:10]}
24. Bb4 {[%clk 0:01:49.3]} 24... Ra6 {[%clk 0:01:42.1]} 25. b3 {[%clk
0:01:44.9]} 25... cxb3 {[%clk 0:01:36.1]} 26. Nxb3 {[%clk 0:01:23]} 26... Kd8
{[%clk 0:01:24.6]} 27. Qxg6 {[%clk 0:01:14.4]} 27... Qg5+ {[%clk 0:01:18.8]} 28.
Qxg5 {[%clk 0:01:14.7]} 28... Bxg5+ {[%clk 0:01:20.7]} 29. Bd2 {[%clk
0:00:51.5]} 29... Bf6 {[%clk 0:01:18.4]} 30. g4 {[%clk 0:00:45]} 30... Kd7
{[%clk 0:00:52.7]} 31. Rxe6 {[%clk 0:00:44.7]} 31... Kxe6 {[%clk 0:00:50.8]} 32.
Nc5+ {[%clk 0:00:46.1]} 32... Kd5 {[%clk 0:00:51.9]} 33. Nxa6 {[%clk 0:00:48]}
33... bxa6 {[%clk 0:00:53.3]} 34. f4 {[%clk 0:00:35.1]} 34... Ke4 {[%clk
0:00:54.2]} 35. f5 {[%clk 0:00:28.4]} 35... Bh4 {[%clk 0:00:49.9]} 36. Kb2
{[%clk 0:00:23.9]} 36... Kf3 {[%clk 0:00:40.1]} 37. g5 {[%clk 0:00:24]} 37...
Ke4 {[%clk 0:00:34.3]} 38. f6 {[%clk 0:00:25.2]} 38... exf6 {[%clk 0:00:30.4]}
39. g6 {[%clk 0:00:26.7]} 39... d3 {[%clk 0:00:22.8]} 40. g7 {[%clk 0:00:21.8]}
40... f5 {[%clk 0:00:23.3]} 41. g8=Q {[%clk 0:00:23]} 41... f4 {[%clk
0:00:24.8]} 42. Qe6+ {[%clk 0:00:23.4]} 42... Kf3 {[%clk 0:00:26]} 43. cxd3
{[%clk 0:00:23.9]} 43... Bf2 {[%clk 0:00:25.1]} 44. Qe4+ {[%clk 0:00:25]} 44...
Kg3 {[%clk 0:00:26.2]} 45. Qxf4+ {[%clk 0:00:26.2]} 1-0